Cogmind - Beta 14 @@@ ROGUE MODE // 2024.12.21 @ 20:40:39 Player: blackdogzx Result: Destroyed by E2-I7R(R) with Subdweller Machine Gun Performance ------------- Evolutions (0) 0 Regions Visited (2) 400 Robots Destroyed (3) 15 Value Destroyed (114) 114 Prototype IDs (0) 0 Alien Tech Used (0) 0 Bonus (0) 0 TOTAL SCORE: 529 Bonus ------- None Cogmind --------- Core Integrity 0/250 Matter 314/500 Energy 100/100 System Corruption 0% Temperature Cool (0) Movement Core (150) Ox2 Location -10/Subcaves Parts ------- > --- POWER (1) -------- (None) > --- PROPULSION (2) --- (None) > --- UTILITY (2) ------ Small Storage Unit High-capacity Matter Pod > --- WEAPON (2) ------- (None) > --- INVENTORY (8) ---- Improved Targeting Computer Makeshift Light Armor Plating Peak State ------------ > --- POWER ------------ Ion Engine > --- PROPULSION ------- Aluminum Leg Aluminum Leg > --- UTILITY ---------- Small Storage Unit High-capacity Matter Pod > --- WEAPON ----------- Autogun > --- INVENTORY -------- Ion Engine Improved Targeting Computer Light Assault Rifle [Rating: 7] Favorites ----------- Power Ion Engine Engine Ion Engine Propulsion Aluminum Leg Leg Aluminum Leg Utility Small Storage Unit Storage Small Storage Unit Weapon Autogun Ballistic Gun Autogun Build | -11 -10 -10 ------- Run | Yrd Mat Sub Slots Evolved . | . . . Power . | . . . Propulsion . | . . . Utility . | . . . Weapon . | . . . Parts Attached 10 | 5 5 . Power 3 | 1 2 . Engine 3 | 1 2 . Core . | . . . Reactor . | . . . Propulsion 2 | 2 . . Treads . | . . . Leg 2 | 2 . . Wheel . | . . . Hover . | . . . Flight . | . . . Utility 2 | 1 1 . Device . | . . . Storage 2 | 1 1 . Processor . | . . . Hackware . | . . . Protection . | . . . Artifact . | . . . Weapon 3 | 1 2 . Energy Gun . | . . . Energy Cannon . | . . . Ballistic Gun 3 | 1 2 . Ballistic Cannon . | . . . Launcher . | . . . Special Weapon . | . . . Impact Weapon . | . . . Slashing Weapon . | . . . Piercing Weapon . | . . . Special Melee Weapon . | . . . Unidentified Prototypes . | . . . Parts Lost 5 | . 1 4 Power 2 | . 1 1 Propulsion 2 | . . 2 Utility . | . . . Weapon 1 | . . 1 Highest Loss Streak 4 | . 1 4 To Critical Strikes . | . . . Average Slot Usage (%) 81 | . 81 80 Engine 12 | . 13 12 Leg 26 | . 28 25 Storage 27 | . 26 28 Ballistic Gun 13 | . 13 14 Peak Build Rating 7 | 5 7 7 Average Rating 6 | 4 6 6 On Entrance 4 | . 5 7 Naked Turns . | . . . Heaviest Build 17 | 11 17 17 Greatest Support 20 | 20 20 20 Greatest Overweight (x) 3 | 3 . 2 Average Overweight (x) . | . . . Largest Inventory Capacity 8 | 8 8 8 Average Capacity 7 | 7 8 8 Most Carried 3 | 1 3 2 Average Carried 1 | . 1 1 Final Capacity 8 | 8 8 8 Final Carried 2 | 1 1 2 Class Distribution -------------------- 100% | Mutant Dominant Class ---------------- Mutant | -10/Materials Mutant | -10/Subcaves Resources | -11 -10 -10 ----------- Run | Yrd Mat Sub Matter Collected 362 | 148 41 173 Remotely . | . . . Salvage Created 143 | . 41 102 Parts 7 | . 4 3 Haulers Intercepted . | . . . Recyclers Shooed . | . . . Parts Field Recycled . | . . . Retrieved Matter . | . . . Parts Self-Destructed . | . . . Prevented . | . . . Kills | -11 -10 -10 ------- Run | Yrd Mat Sub Combat Hostiles Destroyed 3 | . 1 2 Guns 3 | . 1 2 Classes Destroyed 2 | . 1 1 Grunt 1 | . 1 . Subdweller 2 | . . 2 Best Kill Streak 2 | . 1 2 Combat Bots Only 2 | . 1 2 Max Kills in Single Turn 1 | . 1 1 Gunslinging . | . . . Exploded . | . . . Melee . | . . . Uniques/NPCs Destroyed . | . . . Combat | -11 -10 -10 -------- Run | Yrd Mat Sub Hostile Shots Fired 53 | . 12 41 Missed 15 | . 2 13 Damage Taken 736 | . 139 597 Core 256 | . 11 245 Absorbed by Shields . | . . . Core Remaining (%) 100 | 100 . . Volleys Fired 23 | . 5 18 Largest 1 | . 1 1 Hottest 23 | . 23 23 Shots Fired 23 | . 5 18 Gun 23 | . 5 18 Cannon . | . . . Launcher . | . . . Special . | . . . Kinetic 23 | . 5 18 Thermal . | . . . Explosive . | . . . Electromagnetic . | . . . Robot Hit Streak 10 | . 3 10 Robot Miss Streak 1 | . 1 1 Penetration Max . | . . . Secondary Targets . | . . . Shots Hit Robots 20 | . 4 16 Core Hits 8 | . 2 6 Critical Kills . | . . . Critical Parts Destroyed . | . . . Critical Strikes . | . . . Melee Attacks . | . . . Impact . | . . . Slashing . | . . . Piercing . | . . . Sneak Attacks . | . . . Combat Hostiles . | . . . Follow-up Attacks . | . . . Damage Inflicted 284 | . 38 246 Guns 280 | . 38 242 Cannons . | . . . Explosions . | . . . Melee . | . . . Ramming 4 | . . 4 Kinetic 280 | . 38 242 Thermal . | . . . Explosive . | . . . Electromagnetic . | . . . Impact . | . . . Slashing . | . . . Piercing . | . . . Highest Corruption . | . . . Average Corruption . | . . . Corruption Purged . | . . . Corruption Blocked . | . . . Overload Shots . | . . . Overflow Damage . | . . . Projectiles . | . . . Explosions . | . . . Melee . | . . . Knockbacks . | . . . Impact . | . . . Kinetic . | . . . Secondary . | . . . Self-Inflicted Damage 1 | . . 1 Shots . | . . . Rammed 2 | . . 2 Targets Rammed 2 | . . 2 Kicked . | . . . Crushed . | . . . Highest Temperature 3 | . 3 . Average Temperature 3 | . 3 . Received Heat Transfer 75 | . 75 . Siege Activations . | . . . Robots Corrupted . | . . . Combat Hostiles . | . . . Parts Fried . | . . . Impact Corruptions . | . . . Robots Melted . | . . . Combat Hostiles . | . . . Parts Melted . | . . . Heat Transferred . | . . . Parts Sabotaged . | . . . Parts Stolen . | . . . Parts Stripped . | . . . Power Chain Reactions . | . . . Alert | -11 -10 -10 ------- Run | Yrd Mat Sub Peak Influence 80 | . 80 . Initial . | . . . Average 28 | . 35 . Maximum Alert Level . | . . . Low Security (%) 100 | 100 100 . Level 1 . | . . . Level 2 . | . . . Level 3 . | . . . Level 4 . | . . . Level 5 . | . . . High Security . | . . . Max Security . | . . . Squads Dispatched 1 | . 1 . Investigation . | . . . Extermination . | . . . Reinforcement 1 | . 1 . Assault . | . . . Garrison . | . . . Intercept . | . . . Searches Triggered . | . . . Construction Impeded . | . . . Haulers Reinforced . | . . . Active Scanning Responses . | . . . Cargo Convoy Interrupts . | . . . Stealth | -11 -10 -10 --------- Run | Yrd Mat Sub Distress Signals . | . . . Communications Jammed . | . . . Distress Signals . | . . . Times Spotted 11 | . 6 5 Peak Tracking Total 4 | . 4 4 Tactical Retreats . | . . . Traps | -11 -10 -10 ------- Run | Yrd Mat Sub Traps Triggered 1 | . 1 . Indirectly . | . . . Trap Hack Attempts . | . . . Triggered . | . . . Disarmed . | . . . Reprogrammed . | . . . Reused . | . . . Traps Extracted . | . . . Installed . | . . . Triggered . | . . . Machines | -11 -10 -10 ---------- Run | Yrd Mat Sub Machines Disabled 1 | . . 1 Max in Single Turn 1 | . . 1 Machines Repaired . | . . . Machines Dismantled . | . . . Machines Sabotaged . | . . . Overloaded Fab Kills . | . . . Hacking | -11 -10 -10 --------- Run | Yrd Mat Sub Machines Accessed 1 | . 1 . Terminals 1 | . 1 . Fabricators . | . . . Repair Stations . | . . . Recycling Units . | . . . Scanalyzers . | . . . Garrison Access . | . . . Total Hacks 1 | . 1 . Successful 1 | . 1 . Failed . | . . . Catastrophic . | . . . Database Lockouts . | . . . Manual . | . . . Terminals 1 | . 1 . Fabricators . | . . . Repair Stations . | . . . Recycling Units . | . . . Scanalyzers . | . . . Garrison Access . | . . . Terminal Hacks 1 | . 1 . Record 1 | . 1 . Fabricator Hacks . | . . . Repair Station Hacks . | . . . Recycling Unit Hacks . | . . . Scanalyzer . | . . . Garrison Access Hacks . | . . . Unauthorized Hacks . | . . . Terminals . | . . . Fabricators . | . . . Repair Stations . | . . . Recycling Units . | . . . Scanalyzers . | . . . Garrison Access . | . . . Data Cores Recovered . | . . . Used . | . . . Hacking Detections 1 | . 1 . Full Trace Events . | . . . Feedback Events . | . . . Feedback Blocked . | . . . Robot Schematics Acquired . | . . . Robots Built . | . . . Authchips . | . . . Time . | . . . Total Robot Build Rating . | . . . Part Schematics Acquired . | . . . Parts Built . | . . . Authchips . | . . . Time . | . . . Total Part Build Rating . | . . . Parts Repaired . | . . . Time . | . . . Parts Recycled . | . . . Recycled Matter . | . . . Retrieved Matter . | . . . Retrieved Components . | . . . Parts Scanalyzed . | . . . Part Schematics Acquired . | . . . Parts Damaged . | . . . Bothacking | -11 -10 -10 ------------ Run | Yrd Mat Sub Used RIF Installer . | . . . Robots Hacked . | . . . Non-combat . | . . . Combat . | . . . Robot Hacks Applied . | . . . Relay Couplers Released . | . . . Fabnet Peak Effective % . | . . . Robots Rewired . | . . . Allies Hacked . | . . . Hacks Repelled . | . . . Allies | -11 -10 -10 -------- Run | Yrd Mat Sub Total Allies . | . . . Largest Group . | . . . Highest-Rated Group . | . . . Highest-Rated Ally . | . . . Total Orders . | . . . Ally Attacks . | . . . Total Damage . | . . . Kills . | . . . Allies Corrupted . | . . . Allies Melted . | . . . Intel | -11 -10 -10 ------- Run | Yrd Mat Sub Robot Analysis Total . | . . . Derelict Logs Recovered 1 | . . 1 Drone Launches . | . . . Drone Recoveries . | . . . Exploration | -11 -10 -10 ------------- Run | Yrd Mat Sub Turns Passed 667 | 71 313 283 Spaces Moved 436 | 49 182 205 Core 11 | 9 . 2 Treads . | . . . Legs 425 | 40 182 203 Wheels . | . . . Hover . | . . . Flight . | . . . Fastest Speed 50 | 50 120 120 Average Speed 121 | 129 120 120 Slowest Speed 200 | 200 120 150 Overloaded Moves . | . . . Propulsion Burnouts . | . . . Robots Hopped . | . . . Cave-ins Triggered . | . . . Exploration Rate (%) 14 | 4 24 16 Regions Visited 2 Branch Regions 1 Pre-discovered Areas . | . . . Known Exits Taken . | . . . Unknown Exits Taken 2 | 1 1 . Scrap Searched . | . . . Spaces Dug . | . . . Terrain Destroyed . | . . . Melee . | . . . Projectile . | . . . AOE . | . . . Terrain Rammed . | . . . Walls Destroyed . | . . . Machines Disabled . | . . . Actions | -11 -10 -10 --------- Run | Yrd Mat Sub Total 552 | 54 272 226 Wait 76 | . 76 . Move 434 | 48 181 205 Hop . | . . . Pick Up 5 | 1 3 1 Fast Attach 7 | 5 2 . Attach 3 | . 3 . Detach 1 | . 1 . Swap . | . . . Drop 1 | . 1 . Fire 23 | . 5 18 Melee . | . . . Ram 2 | . . 2 Kick . | . . . Crush . | . . . Escape Stasis . | . . . Rewire . | . . . Trap . | . . . Miscellaneous . | . . . Route ------- -11/Scrapyard -10/Materials (discovered 2 exits: [*Mat] / *Sub) -10/Subcaves History --------- Turn | Location | Event 15 | -11/Scrapyard | Discovered new exit (range 16) 72 | -11/Scrapyard | Entered Materials 305 | -10/Materials | Build established: Mutant 337 | -10/Materials | Discovered new exit (range 16) 357 | -10/Materials | Discovered new exit (range 11) 385 | -10/Materials | Entered Subcaves 578 | -10/Subcaves | Shifting Twisted Machinery released Mak. Light Armor Plating 590 | -10/Subcaves | Learned Materials interactive machine intel 594 | -10/Subcaves | Shifting Twisted Machinery released Flamer 623 | -10/Subcaves | Visited Clippyterm 644 | -10/Subcaves | Core integrity fell below 50% 667 | -10/Subcaves | Core integrity fell below 20% 668 | -10/Subcaves | Destroyed by E2-I7R(R) with Subdweller Machine Gun Last Messages --------------- 00590_ Acquired derelict log, extracted data. Data stored: Materials interactive machine intel. Flamer falls loose from the Twisted Machinery. 00622_ A thin wall crumbles away, revealing a door. 00623_ The door opens automatically. 00629_ Connecting with Clippyterm... 00629_ Current location identified: Subcaves 00633_ Aluminum Leg destroyed. 00635_ Machine disabled. 00639_ Ion Engine destroyed. 00653_ DS-G8C(R) destroyed. 00659_ 63-F28(R) destroyed. 00661_ Autogun destroyed. 00665_ Clippyterm disabled. 00665_ Slammed into 57-NWW(R). 00666_ Acquired 58 matter. 00667_ Slammed into E2-I7R(R). 00668_ Acquired 44 matter. Map ----- +----------------------------------------------------+ | ?????????????????????????????????????????????????? | | ?????????????????????????????????????????????????? | | ?????????????????????????????????????????????????? | | ?????????????????????????????????????????????????? | | ?????????????????????????????????????????????????? | | ?????????????????????????????????????????????????? | | ?????????????????????????????????????????????????? | | ?????????????????????????????????????????????????? | | ?????????????????????????????????????????????????? | | ?????????????????????????????????????????????????? | | ?????????????????????????????????????????????????? | | ?????????????????????????????????????????????????? | | ?????????????????????????????????????????????????? | | ?????????????????????????????????????????????????? | | ?????????????????????????????????????????????????? | | ?????????????????????????????????????????????????? | | ?????????????????????????????????????????????????? | | ?????????????????????????????????????????????????? | | ?????????????????????????????????????????????????? | | ?????????????????????????????????????????????????? | | ??????????????????????#######????????????????????? | | ??????????????????????#"""""#????????????????????? | | ??????????????????????#"" "#????????????????????? | | #?????????????????????# &&R"#????????????????????? | | ##???????????#####????### ###????????????????????? | | #?????????### ##????##@###????????????????????? | | ##?????????# ??#### R ##???????????????????? | | #??????????# ?## ##??????????????????? | | ????????#### ### #??????????????????? | | ???????? # # ### #??????????????????? | | ????##?## ## # #?# #????????????????? | | ???# ### ?## #?# """ "?????????????? | | ??# ## ?# # ##?## ""##" # "???????????? | | ## ## ### # #???# "#? #??????????????? | | ## "###???### ##??????????????????? | | # " "##???????###???????????????????? | | ### ### "#?????????????????????????????? | | #### ##?## ##????##???????????????????????? | | ##??# #???#" #?????"#???????????????????????? | | ##### #???## ##???""###?????????????????????? | | #????# ##??" " ##????????????????????? | | ### ## "##? " ##???????????????????? | | "" """## "## " "#???????????????????? | | ## " """## "" " "#???????????????????? | | ####### ## "" """ #???????????????????? | | #?????# ### " ## #???????????????????? | | ####??# "###### ###"" #??????????????????? | | #### #????####??"" #?????????????????? | | #?????????"""" ## ???????????????? | | #?????????# ""##??## ?????????????? | +----------------------------------------------------+ Best States ------------- Heat Dissipation 25 Energy Generation 10 Energy Capacity 250 Matter Stores 254 Matter Capacity 500 Sight Range 16 Terrain Scan Density 10 Evasion (%) 55 Item Schematics ----------------- None Robot Schematics ------------------ None Fabricated ------------ Nothing Alien Tech Used ----------------- None Achievements -------------- None Challenges ------------ None Game ------ Seed GhostNuclearTreads Manual? 0 Play Time 00:09:54 Cumulative 22.8 hours Start 2024.12.21 @ 20:33:11 End 2024.12.21 @ 20:40:39 Sessions 1 Manual Loads 0 Difficulty Rogue Special Mode None Game No. 38 Rogue 35 Adventurer 3 Explorer 0 Win Type - Total 0 Types 0/0/0/0/0/0/0/0/0 Lore% 9 Gallery% 19 Achievement% 16 Wizard Run 0 Options --------- Layout 1 ASCII 0 Keyboard 1 Movement Numpad Keybinds 0 Fullscreen 1 Font 24/Smallcaps Map View 50x35 Zoom Use 4% Tactical HUD 1 Map Filters NONE Filters NONE Steam 1 RUN: 4cade5f0-6a33-4abe-94fe-81f32d17520e